Cogmind - Beta 15 @@@ ROGUE MODE // 2025.08.05 @ 20:42:33 Player: GayPredator Result: Destroyed by D-53 Grenadier with Mini Grenade Launcher Performance ------------- Evolutions (0) 0 Regions Visited (4) 800 Robots Destroyed (20) 100 Value Destroyed (339) 339 Prototype IDs (0) 0 Alien Tech Used (0) 0 Bonus (0) 0 TOTAL SCORE: 1239 Bonus ------- None Cogmind --------- Core Integrity 0/250 Matter 282/300 Energy 18/250 System Corruption 10% Temperature Cool (0) Movement Rolling (95) Ox1 Location -9/Mines Parts ------- > --- POWER (1) -------- Ion Engine > --- PROPULSION (2) --- Aluminum Leg Wheel > --- UTILITY (2) ------ Small Storage Unit Shield Generator > --- WEAPON (2) ------- (None) > --- INVENTORY (8) ---- Light Ion Engine Cooling System Large Storage Unit Light Armor Plating Light Armor Plating Tractor Beam Mace Peak State ------------ > --- POWER ------------ Ion Engine > --- PROPULSION ------- Improved Hover Unit Improved Hover Unit > --- UTILITY ---------- Small Storage Unit Improved Targeting Computer > --- WEAPON ----------- Light Assault Rifle Mace > --- INVENTORY -------- Ion Engine Improved Hover Unit Improved Hover Unit Cooling System Large Storage Unit Light Armor Plating Light Armor Plating Light Assault Rifle [Rating: 12] Favorites ----------- Power Ion Engine Engine Ion Engine Propulsion Improved Hover Unit Treads Light Treads Leg Aluminum Leg Wheel Wheel Hover Unit Improved Hover Unit Utility Small Storage Unit Device Seismic Detector Storage Small Storage Unit Processor Improved Targeting Computer Weapon Light Assault Rifle Ballistic Gun Light Assault Rifle Launcher Grenade Launcher Special Weapon Mining Laser Impact Weapon Mace Build | -11 -10 -10 -10 -9 ------- Run | Yrd Mat Min Exi Min Slots Evolved . | . . . . . Power . | . . . . . Propulsion . | . . . . . Utility . | . . . . . Weapon . | . . . . . Parts Attached 23 | 7 6 3 . 7 Power 3 | 1 1 1 . . Engine 3 | 1 1 1 . . Core . | . . . . . Reactor . | . . . . . Propulsion 10 | 2 2 2 . 4 Treads 2 | 2 . . . . Leg 2 | . . . . 2 Wheel 2 | . . . . 2 Hover 4 | . 2 2 . . Flight . | . . . . . Utility 5 | 2 2 . . 1 Device 2 | 1 . . . 1 Storage 2 | 1 1 . . . Processor 1 | . 1 . . . Hackware . | . . . . . Protection . | . . . . . Artifact . | . . . . . Weapon 5 | 2 1 . . 2 Energy Gun . | . . . . . Energy Cannon . | . . . . . Ballistic Gun 2 | 2 . . . . Ballistic Cannon . | . . . . . Launcher 1 | . . . . 1 Special Weapon 1 | . . . . 1 Impact Weapon 1 | . 1 . . . Slashing Weapon . | . . . . . Piercing Weapon . | . . . . . Special Melee Weapon . | . . . . . Unidentified Prototypes . | . . . . . Parts Lost 7 | . . . . 7 Power . | . . . . . Propulsion 3 | . . . . 3 Utility . | . . . . . Weapon 4 | . . . . 4 Highest Loss Streak 3 | . . . . 3 To Critical Strikes . | . . . . . Average Backups 6 | 2 7 6 7 7 Power . | . 1 1 1 1 Propulsion 1 | 1 2 . . . Utility 3 | . 3 4 4 4 Weapon 1 | . . 1 2 1 Tool/Special . | . . . . . Unused Backups 12 | . 6 . . 6 Power 2 | . 1 . . 1 Propulsion 2 | . 2 . . . Utility 7 | . 2 . . 5 Weapon 1 | . 1 . . . Tool/Special . | . . . . . Average Slot Usage (%) 97 | . 99 99 100 92 Engine 14 | . 14 14 14 14 Leg 1 | . . . . 3 Wheel 4 | . . . . 14 Hover 21 | . 26 27 28 5 Storage 14 | . 14 14 14 14 Processor 13 | . 13 14 14 13 Ballistic Gun 24 | . 28 28 28 16 Launcher 2 | . . . . 8 Peak Build Rating 12 | 7 12 11 10 11 Average Rating 9 | 5 10 10 10 8 On Entrance 7 | . 7 11 10 10 Naked Turns . | . . . . . Heaviest Build 14 | 11 13 12 12 14 Greatest Support 40 | 40 40 14 14 26 Greatest Overweight (x) 1 | . 1 . . 1 Average Overweight (x) . | . . . . . Largest Inventory Capacity 10 | 8 10 8 8 8 Average Capacity 7 | 7 8 8 8 8 Most Carried 8 | 4 8 8 7 8 Average Carried 7 | 2 7 6 7 7 Final Capacity 8 | 8 8 8 8 8 Final Carried 8 | 4 8 7 7 7 Class Distribution -------------------- 100% | Mutant Dominant Class ---------------- Mutant | -10/Materials Mutant | -10/Mines Mutant | -10/Exiles Mutant | -9/Mines Resources | -11 -10 -10 -10 -9 ----------- Run | Yrd Mat Min Exi Min Matter Collected 652 | 246 152 23 . 231 Remotely . | . . . . . Salvage Created 509 | 68 123 49 . 269 Parts 37 | 4 10 6 . 17 Haulers Intercepted . | . . . . . Recyclers Shooed 3 | 1 . . . 2 Parts Field Recycled . | . . . . . Retrieved Matter . | . . . . . Parts Self-Destructed . | . . . . . Prevented . | . . . . . Kills | -11 -10 -10 -10 -9 ------- Run | Yrd Mat Min Exi Min Combat Hostiles Destroyed 31 | . 5 3 . 23 Guns 12 | . 5 3 . 4 AOE 19 | . . . . 19 Classes Destroyed 8 | 2 3 . . 3 Tunneler 3 | 1 . . . 2 Recycler 2 | 1 . . . 1 Operator 2 | . 2 . . . Watcher 1 | . 1 . . . Swarmer 8 | . 5 3 . . Grunt 3 | . . . . 3 Demolisher 1 | . . . . 1 Assembled 19 | . . . . 19 Best Kill Streak 19 | 1 3 3 . 19 Combat Bots Only 19 | . 3 3 . 19 Max Kills in Single Turn 5 | 1 1 1 . 5 Gunslinging . | . . . . . Exploded 5 | . . . . 5 Melee . | . . . . . Uniques/NPCs Destroyed . | . . . . . Combat | -11 -10 -10 -10 -9 -------- Run | Yrd Mat Min Exi Min Hostile Shots Fired 86 | . 15 19 . 52 Missed 23 | . 4 7 . 12 Hits 63 | . 11 12 . 40 Melee 2 | . . . . 2 Projectile 61 | . 11 12 . 38 AOE 7 | . . . . 7 Critical Strikes 1 | . 1 . . . Damage Taken 970 | . 83 87 . 800 Core 263 | . . 14 . 249 Absorbed by Shields 64 | . . . . 64 Core Remaining (%) 100 | 100 . . . . Volleys Fired 71 | 7 19 8 . 37 Largest 2 | 2 2 2 . 2 Hottest 50 | 40 40 40 . 50 Shots Fired 112 | 14 38 16 . 44 Gun 99 | 14 38 16 . 31 Cannon . | . . . . . Launcher 13 | . . . . 13 Special . | . . . . . Kinetic 99 | 14 38 16 . 31 Thermal . | . . . . . Explosive 13 | . . . . 13 Electromagnetic . | . . . . . Robot Hit Streak 6 | 3 4 4 . 6 Robot Miss Streak 5 | 1 2 5 . 3 Penetration Max . | . . . . . Secondary Targets 2 | . 2 . . . Max Gunslinging Chain 1 | . 1 . . . Shots Hit Robots 60 | 8 23 7 . 22 Core Hits 83 | 6 13 4 . 60 Critical Kills . | . . . . . Critical Parts Destroyed . | . . . . . Critical Strikes . | . . . . . Melee Attacks 1 | . 1 . . . Impact 1 | . 1 . . . Slashing . | . . . . . Piercing . | . . . . . Sneak Attacks . | . . . . . Combat Hostiles . | . . . . . Follow-up Attacks . | . . . . . Damage Inflicted 1743 | 57 185 51 . 1450 Guns 468 | 55 185 51 . 177 Cannons . | . . . . . Explosions 1273 | . . . . 1273 Melee . | . . . . . Ramming 2 | 2 . . . . Kinetic 468 | 55 185 51 . 177 Thermal . | . . . . . Explosive 1273 | . . . . 1273 Electromagnetic . | . . . . . Impact . | . . . . . Slashing . | . . . . . Piercing . | . . . . . Highest Corruption 10 | . . . . 10 Average Corruption 9 | . . . . 9 Corruption Purged . | . . . . . Corruption Blocked . | . . . . . Effects 8 | . . . . 8 Message Errors 1 | . . . . 1 Data Loss (minor) 4 | . . . . 4 Data Loss (major) 2 | . . . . 2 Misfires 1 | . . . . 1 Overload Shots . | . . . . . Overflow Damage 29 | . . . . 29 Projectiles . | . . . . . Explosions 29 | . . . . 29 Melee . | . . . . . Knockbacks . | . . . . . Impact . | . . . . . Kinetic . | . . . . . Secondary . | . . . . . Self-Inflicted Damage 104 | . . . . 104 Shots 3 | . . . . 3 Rammed 1 | 1 . . . . Targets Rammed 1 | 1 . . . . Kicked . | . . . . . Crushed . | . . . . . Highest Temperature 25 | . 8 8 . 25 Average Temperature 5 | . 4 4 . 9 Received Heat Transfer 160 | . . . . 160 Siege Activations . | . . . . . Martial Activations . | . . . . . Shielding Activations . | . . . . . Robots Disrupted . | . . . . . Combat Hostiles . | . . . . . Robots Corrupted . | . . . . . Combat Hostiles . | . . . . . Parts Fried . | . . . . . Impact Corruptions . | . . . . . Robots Melted . | . . . . . Combat Hostiles . | . . . . . Parts Melted . | . . . . . Heat Transferred . | . . . . . Parts Sabotaged . | . . . . . Parts Stolen . | . . . . . Parts Stripped . | . . . . . Power Chain Reactions . | . . . . . Alert | -11 -10 -10 -10 -9 ------- Run | Yrd Mat Min Exi Min Maximum Alert Level . | . . . . . Low Security (%) 100 | 100 100 100 . 100 Level 1 . | . . . . . Level 2 . | . . . . . Level 3 . | . . . . . Level 4 . | . . . . . Level 5 . | . . . . . High Security . | . . . . . Max Security . | . . . . . Peak Influence 104 | 5 104 87 . 100 Initial 27 | . . 27 . . Average 20 | 1 16 60 . 16 Influence Increases 436 | 10 154 70 . 202 Destroy 0b10 Robot/C 240 | . 100 60 . 80 Destroy 0b10 Robot/NC 40 | 10 15 . . 15 Destroy Leader 52 | . 22 10 . 20 Successful Hack 16 | . 16 . . . Disable Machine 15 | . . . . 15 Destroy Structure 43 | . 1 . . 42 Lose Combat Pursuer 30 | . . . . 30 Influence Decreases 366 | 10 82 115 27 132 Entered New Map 72 | . . 45 27 . Time Decay 234 | 10 82 70 . 72 Lost Part 60 | . . . . 60 Squads Dispatched 3 | . 3 . . . Investigation 1 | . 1 . . . Extermination . | . . . . . Reinforcement 2 | . 2 . . . Assault . | . . . . . Garrison . | . . . . . Intercept . | . . . . . Searches Triggered . | . . . . . Construction Impeded . | . . . . . Haulers Reinforced . | . . . . . Active Scanning Responses . | . . . . . Cargo Convoy Interrupts . | . . . . . Stealth | -11 -10 -10 -10 -9 --------- Run | Yrd Mat Min Exi Min Distress Signals 2 | . 2 . . . Communications Jammed . | . . . . . Distress Signals . | . . . . . Times Spotted 37 | . 10 3 . 24 Peak Tracking Total 17 | . 3 3 . 17 Tactical Retreats 1 | . . . . 1 Traps | -11 -10 -10 -10 -9 ------- Run | Yrd Mat Min Exi Min Traps Triggered 1 | . 1 . . . Indirectly . | . . . . . Trap Hack Attempts . | . . . . . Triggered . | . . . . . Disarmed . | . . . . . Reprogrammed . | . . . . . Reused . | . . . . . Traps Extracted . | . . . . . Installed . | . . . . . Triggered . | . . . . . Machines | -11 -10 -10 -10 -9 ---------- Run | Yrd Mat Min Exi Min Machines Disabled 1 | . . . . 1 Max in Single Turn 1 | . . . . 1 Machines Repaired . | . . . . . Machines Dismantled . | . . . . . Machines Sabotaged . | . . . . . Overloaded Fab Kills . | . . . . . Hacking | -11 -10 -10 -10 -9 --------- Run | Yrd Mat Min Exi Min Machines Accessed 7 | . 6 . 1 . Terminals 6 | . 6 . . . Fabricators . | . . . . . Repair Stations . | . . . . . Recycling Units . | . . . . . Scanalyzers . | . . . . . Garrison Access . | . . . . . Total Hacks 20 | . 19 . 1 . Successful 12 | . 11 . 1 . Failed 8 | . 8 . . . Catastrophic 1 | . 1 . . . Database Lockouts . | . . . . . Manual 16 | . 16 . . . Terminals 19 | . 19 . . . Fabricators . | . . . . . Repair Stations . | . . . . . Recycling Units . | . . . . . Scanalyzers . | . . . . . Garrison Access . | . . . . . Terminal Hacks 3 | . 2 . 1 . Record 1 | . . . 1 . Locate Traps 1 | . 1 . . . Recall Reinforcements 1 | . 1 . . . Fabricator Hacks . | . . . . . Repair Station Hacks . | . . . . . Recycling Unit Hacks . | . . . . . Scanalyzer . | . . . . . Garrison Access Hacks . | . . . . . Unauthorized Hacks 8 | . 8 . . . Terminals 8 | . 8 . . . Botnet 4 | . 4 . . . Skim 4 | . 4 . . . Fabricators . | . . . . . Repair Stations . | . . . . . Recycling Units . | . . . . . Scanalyzers . | . . . . . Garrison Access . | . . . . . Data Cores Recovered . | . . . . . Used . | . . . . . Hacking Detections 6 | . 6 . . . Full Trace Events . | . . . . . Feedback Events . | . . . . . Feedback Blocked . | . . . . . Robot Schematics Acquired . | . . . . . Robots Built . | . . . . . Authchips . | . . . . . Time . | . . . . . Total Robot Build Rating . | . . . . . Part Schematics Acquired . | . . . . . Parts Built . | . . . . . Authchips . | . . . . . Time . | . . . . . Total Part Build Rating . | . . . . . Parts Repaired . | . . . . . Time . | . . . . . Parts Recycled . | . . . . . Recycled Matter . | . . . . . Retrieved Matter . | . . . . . Retrieved Components . | . . . . . Parts Scanalyzed . | . . . . . Part Schematics Acquired . | . . . . . Parts Damaged . | . . . . . Bothacking | -11 -10 -10 -10 -9 ------------ Run | Yrd Mat Min Exi Min Used RIF Installer . | . . . . . Robots Hacked . | . . . . . Non-combat . | . . . . . Combat . | . . . . . Robot Hacks Applied . | . . . . . Relay Couplers Released . | . . . . . Fabnet Peak Effective % . | . . . . . Robots Rewired . | . . . . . Allies Hacked . | . . . . . Hacks Repelled . | . . . . . Allies | -11 -10 -10 -10 -9 -------- Run | Yrd Mat Min Exi Min Total Allies 1 | . . . . 1 Largest Group 1 | . . . . 1 Highest-Rated Group 31 | . . . . 31 Highest-Rated Ally 31 | . . . . 31 Total Orders . | . . . . . Ally Attacks 3 | . . . . 3 Total Damage . | . . . . . Kills . | . . . . . Allies Corrupted . | . . . . . Allies Melted . | . . . . . Intel | -11 -10 -10 -10 -9 ------- Run | Yrd Mat Min Exi Min Active Infowar (turns) 38 | 11 27 . . . Seismic 38 | 11 27 . . . Robot Analysis Total . | . . . . . Derelict Logs Recovered . | . . . . . Drone Launches . | . . . . . Drone Recoveries . | . . . . . Exploration | -11 -10 -10 -10 -9 ------------- Run | Yrd Mat Min Exi Min Turns Passed 1335 | 109 527 145 207 347 Spaces Moved 1615 | 47 727 198 370 273 Core 2 | 2 . . . . Treads 54 | 45 9 . . . Legs 25 | . . . . 25 Wheels 176 | . . . . 176 Hover 1358 | . 718 198 370 72 Flight . | . . . . . Fastest Speed 50 | 50 56 56 56 56 Average Speed 64 | 155 57 56 56 84 Slowest Speed 190 | 160 160 56 56 190 Overloaded Moves . | . . . . . Propulsion Burnouts . | . . . . . Robots Hopped . | . . . . . Potential Cave-ins . | . . . . . Cave-ins Triggered . | . . . . . Exploration Rate (%) 55 | 4 95 43 88 46 Regions Visited 4 Branch Regions 3 Pre-discovered Areas . | . . . . . Known Exits Taken . | . . . . . Unknown Exits Taken 4 | 1 1 1 1 . Scrap Searched 2 | . . . . 2 Spaces Dug 1 | . 1 . . . Terrain Destroyed 71 | . 1 . . 70 Melee 1 | . 1 . . . Projectile . | . . . . . AOE 70 | . . . . 70 Terrain Rammed . | . . . . . Walls Destroyed . | . . . . . Machines Disabled . | . . . . . Actions | -11 -10 -10 -10 -9 --------- Run | Yrd Mat Min Exi Min Total 1814 | 68 807 219 369 351 Wait 60 | 3 28 6 . 23 Move 1611 | 46 726 197 369 273 Hop . | . . . . . Pick Up 21 | 4 11 2 . 4 Fast Attach 15 | 7 3 . . 5 Attach 6 | . . 2 . 4 Detach 2 | . 2 . . . Swap 7 | . 5 1 . 1 Drop 19 | . 12 3 . 4 Fire 71 | 7 19 8 . 37 Melee 1 | . 1 . . . Ram . | . . . . . Kick . | . . . . . Crush 1 | 1 . . . . Escape Stasis . | . . . . . Rewire . | . . . . . Trap . | . . . . . Miscellaneous . | . . . . . Route ------- -11/Scrapyard -10/Materials (discovered 5 exits: [*Mat x3] / [*Min] / [*Sub]) -10/Mines (discovered 2 exits: [*Mat] / *Exi) -10/Exiles (discovered 2 exits: [*Min x2]) -9/Mines History --------- Turn | Location | Event 19 | -11/Scrapyard | Discovered new exit (range 13) 110 | -11/Scrapyard | Entered Materials 111 | -10/Materials | Met a group of wandering Federalists 268 | -10/Materials | Discovered new exit (range 10) 280 | -10/Materials | Discovered new exit (range 16) 316 | -10/Materials | Build established: Mutant 330 | -10/Materials | Discovered new exit (range 14) 397 | -10/Materials | Discovered new exit (range 15) 460 | -10/Materials | Discovered new exit (range 9) 637 | -10/Materials | Entered Mines 732 | -10/Mines | YI-UF0 nonchalantly dropped a Grenade Launcher on the ground 772 | -10/Mines | Discovered new exit (range 7) 779 | -10/Mines | Deemed a non-threat by the Exiles lab entrance 779 | -10/Mines | Discovered new exit (range 5) 782 | -10/Mines | Entered Exiles 782 | -10/Exiles | Found Exiles lab abandoned 790 | -10/Exiles | Discovered new exit (range 15) 983 | -10/Exiles | Discovered new exit (range 12) 989 | -10/Exiles | Entered Mines 1041 | -9/Mines | Assembled infested the area 1064 | -9/Mines | System corruption reached 10% 1081 | -9/Mines | Received a Mining Laser from a helpful Derelict 1088 | -9/Mines | Destroyed 19 combat bots 1094 | -9/Mines | Lost 3 parts (2n1w) 1255 | -9/Mines | Core integrity fell below 50% 1327 | -9/Mines | Core integrity fell below 20% 1336 | -9/Mines | Destroyed by D-53 Grenadier with Mini Grenade Launcher Last Messages --------------- 01281_ Acquired 29 matter. 01282_ K-01 Serf collects debris. 01284_ Dropped Aluminum Leg. 01284_ Acquired Aluminum Leg. 01285_ K-01 Serf collects debris. 01288_ Dropped Wheel. 01288_ Acquired Aluminum Leg. 01289_ K-01 Serf collects debris. 01291_ Acquired Wheel. 01292_ K-01 Serf collects debris. 01294_ Acquired 20 matter. 01296_ K-01 Serf collects debris. 01310_ System corrupted: Component data lost. 01311_ Discarded Imp. Targeting Computer. 01312_ Acquired Shield Generator. 01323_ D-53 Grenadier destroyed. 01328_ Aluminum Leg destroyed. 01333_ U-05 Engineer lays Concrete. 01334_ U-05 Engineer builds a Wall. 01334_ Lgt. Assault Rifle destroyed. Map ----- +----------------------------------------------------+ | | | | | | | | | | | | | ??????????????????????????????????????????????? | | ????????????????????##########????????????????? | | ????????????????????# #????????????????? | | ????????????????????# #????????????????? | | ????????????????????# """" #????????????????? | | ????????????????????# """" #????????????????? | | ????????????????????# !%= #????????????????? | | ????????????????????# % #????????????????? | | ?????????????????###### !###????????????????? | | ????????????????## ## !% ##?????????????????? | | #####??########## ##????????????????? | | #??# # = #????????????????? | | ### #### ####### #### #????????????????? | | ??# # ## #?????# ##??# ##????????????????? | | ??#%# ## #????## ##?### #?????????????????? | | ??# # ## #???## # ## # ##????????????????? | | ### # ## # ## #????????????????? | | # # u d ! #????????????????? | | # # ### # ##???????????????? | | ? # # ##? ?## * @ #???????????????? | | ??# ####?#???## ! #???????????????? | | ??# #?????????# # #???????????????? | | ??# #?????????# #### ##???????????????? | | ??# #?????????## #??## ##????????????????? | | ??# ##?????????# ????#######?????????????????? | | ?## ###???????? ????????????????????????????? | | ?# ##??????? ????????????????????????????? | | ?# " ##????????????????????????????????????? | | ?# ##???????????????????????????????????? | | ?## ##??????????????????????????????????? | | ?# #??????????????????????????????????? | | ?# ##??????????????????????????????????? | | ## # ##???????????????????????????????????? | | # #???????????????????????????????????? | | # # ##???????????????????????????????????? | | ##??????????????????????????????????? | | ! # # #??????????????????????????????????? | | # # ###??????????????????????????????????? | | #######??????????????????????????????????? | | ##?????????????????????????????????? | | #####?????????????????????????????? | | #?????????????????????????????? | | ###### #????????????????????????????? | | ## ##????## #????????????????????????????? | +----------------------------------------------------+ Best States ------------- Heat Dissipation 25 Energy Generation 10 Energy Capacity 250 Matter Stores 300 Matter Capacity 300 Sight Range 16 Terrain Scan Density 10 Evasion (%) 55 Targeting Accuracy 6 Recoil Reduction 2 Item Schematics ----------------- None Robot Schematics ------------------ None Fabricated ------------ Nothing Repaired ---------- Nothing Alien Tech Used ----------------- None Achievements -------------- Exterminator Challenges ------------ None Game ------ Seed CloakingArmorFlamer Manual? 0 Play Time 00:20:10 Cumulative 165.5 hours Start 2025.08.05 @ 20:23:48 End 2025.08.05 @ 20:42:33 Sessions 1 Manual Loads 0 Difficulty Rogue Special Mode None Game No. 144 Rogue 105 Adventurer 32 Explorer 7 Win Type - Total 1 Types 1/0/0/0/0/0/0/0/0/0 Lore% 40 Gallery% 61 Achievement% 53 Wizard Run 0 Options --------- Layout 1 ASCII 0 Keyboard 0 Movement Numpad Keybinds 0 Fullscreen 1 Font 24/Smallcaps Map View 50x35 Zoom Use 0% Tactical HUD 1 Map Filters NONE Filters NONE Steam 1 RUN: 2989ad12-924d-4afb-b79c-e7f4f0aba3b8